fUSD/lending_fUSD_20250417
["ID","MTS","AMOUNT","RATE_DAILY","PERIOD"]
[358315777,1744927838938,-602.921,0.000798,120]
[358315778,1744927838950,-186.945,0.000798,120]
[358315779,1744927838959,-1000.0,0.000798,2]
[358315780,1744927838969,-150.0,0.00079859,60]
[358315781,1744927838981,-249.99,0.00079899,120]
[358315782,1744927838991,-500.0,0.00079899,120]
[358315783,1744927839001,-12386.09543639,0.000799,2]
[358315784,1744927839012,-284.79158055,0.000799,2]
[358315787,1744927840156,-405.555575,0.000799,2]
[358315788,1744927840218,-1792.4000004,0.000799,2]
[358315789,1744927840278,-2986.34339697,0.000799,2]
[358315790,1744927840401,-13643.94781069,0.000799,2]
[358315791,1744927840412,-745.2014,0.000799,30]
[358315792,1744927840422,-500.0,0.000799,2]
[358315793,1744927840432,-3490.8322,0.000799,2]
[358315794,1744927840442,-3839.6014017,0.000799,2]
[358315795,1744927840454,-1218.42282855,0.000799,2]
[358315796,1744927840466,-10342.85860827,0.000799,2]
[358315797,1744927840477,-1048.79787069,0.000799,2]
[358315798,1744927840519,-1041.1660869,0.000799,2]
[358315805,1744927842957,-13.71812526,0.00049533,30]
[358315806,1744927843007,-137.28187474,0.00049533,30]
[358315807,1744927843017,-743.71812526,0.000799,2]
[358315808,1744927843156,-16877.44626585,0.000799,2]
[358315812,1744927846150,-13935.47321278,0.000799,2]
[358315813,1744927846159,-150.0,0.000799,120]
[358315814,1744927846169,-150.0,0.000799,120]
[358315815,1744927846178,-412.61154582,0.000799,120]
[358315816,1744927846187,-812.1084678,0.000799,51]
[358315817,1744927846196,-5372.79820325,0.000799,5]
[358315818,1744927846205,-603.71159314,0.000799,67]
[358315819,1744927846216,-182.90621928,0.000799,2]
[358315820,1744927846230,-801.81842156,0.000799,2]
[358315821,1744927846252,-372.06708508,0.000799,2]
[358315822,1744927846262,-3153.55309599,0.000799,15]
[358315823,1744927846271,-150.0,0.00079923,60]
[358315824,1744927846281,-150.0,0.00079966,60]
[358315825,1744927846290,-150.0,0.00079966,60]
[358315826,1744927846299,-150.0,0.0007998,60]
[358315827,1744927846308,-28046.970223,0.00079988,9]
[358315828,1744927846317,-3775.1171754,0.00079988,9]
[358315829,1744927846327,-2525.3492882,0.00079988,9]
[358315830,1744927846337,-2000.0,0.00079989,4]
[358315831,1744927846347,-174.79964513,0.0007999,6]
[358315832,1744927846355,-873.99822565,0.0007999,6]
[358315833,1744927846365,-500.0,0.00079999,90]
[358315834,1744927846376,-500.0,0.00079999,90]
[358315835,1744927846386,-2000.0,0.00079999,2]
[358315836,1744927846395,-500.0,0.00079999,120]
[358315837,1744927846404,-500.0,0.00079999,120]
[358315838,1744927846415,-441.1764118,0.00079999,120]
[358315839,1744927846425,-638.13213587,0.00079999,120]
[358315840,1744927846434,-530.0,0.0008,60]
[358315841,1744927846443,-6747.47616078,0.0008,3]
[358315842,1744927846452,-251.70419509,0.0008,58]
[358315843,1744927846461,-20392.16263138,0.0008,120]
[358315844,1744927846473,-500.0,0.0008,120]
[358315845,1744927846485,-406.13288,0.0008,120]
[358315846,1744927846496,-2793.7,0.0008,120]
[358315847,1744927846569,-24.32500682,0.0008,120]
[358315860,1744928682658,250.0,0.00017,2]
[358315861,1744928683772,300.0,0.00019,2]
[358315862,1744928684842,350.0,0.00021,2]
[358315863,1744928708337,50373.0,0.0002,2]
[358315864,1744928708370,51273.0,0.0002,2]
[358315865,1744928708411,505023.0,0.0002,2]
[358315866,1744928708439,6600.0,0.0002,2]
[358315867,1744928708465,2950.0,0.0002,2]
[358315868,1744928708489,600.0,0.0002,2]
[358315869,1744928733285,-211.27841613,0.000199,2]
[358315870,1744928745789,212.99083589,0.000198,2]
[358315871,1744928745829,1003.06814111,0.000198,2]
[358315872,1744928779391,642.69371706,0.000209,30]
[358315873,1744928830128,-300.0,0.00019899,2]
[358315874,1744928830160,-5658.32553463,0.000199,2]
[358315875,1744928833082,-415.43989896,0.000199,2]
[358315876,1744928833119,-157.82333213,0.000199,2]
[358315877,1744928833144,-776.75396072,0.000199,2]
[358315878,1744928833168,-776.75396073,0.000199,2]
[358315879,1744928833205,-151.67368183,0.00019973,2]
[358315880,1744928833235,-500.0,0.00019973,2]
[358315881,1744928833265,-119.39145956,0.00019999,2]
[358315882,1744928840099,-180.60854044,0.00019999,2]
[358315883,1744928840123,-500.0,0.00019999,2]
[358315884,1744928840148,-54.37731312,0.00019999,2]
[358315885,1744928840180,-449.58711349,0.00019999,2]
[358315886,1744928841123,-162.03557339,0.00019999,2]
[358315887,1744928841149,-278.35175728,0.00019999,2]
[358315888,1744928853107,-288.99305592,0.00019999,2]
[358315899,1744929005623,-152.2,0.0001999,2]
[358315901,1744929005665,-848.9,0.0001999,2]
[358315903,1744929005707,-848.9,0.0001999,2]
[358315905,1744929005749,-134.89604663,0.00019999,2]
[358315908,1744929005797,-115.10395337,0.00019999,2]
[358315910,1744929005840,-300.0,0.00019999,2]
[358315912,1744929005883,-300.0,0.00019999,2]
[358315914,1744929005924,-179.0,0.00019999,2]
[358315916,1744929005969,-259.6451156,0.00019999,2]
[358315918,1744929006013,-230.30826712,0.00019999,2]
[358315921,1744929006056,-600.83871054,0.0002,2]
[358315924,1744929006103,-1356.57581255,0.0002,2]
[358315927,1744929006150,-1984.89604663,0.0002,2]
[358315930,1744929006199,-1984.89604663,0.0002,2]
[358315934,1744929006250,-1984.89604663,0.0002,2]
[358315936,1744929006296,-1984.89604663,0.0002,2]
[358315938,1744929006345,-1984.89604663,0.0002,2]
[358315940,1744929006396,-1984.89604663,0.0002,2]
[358315942,1744929006445,-1984.89604663,0.0002,2]
[358315943,1744929006491,-1984.89604663,0.0002,2]
[358315945,1744929006541,-1984.89604663,0.0002,2]
[358315954,1744929032100,-884.30114232,0.0001999,2]
[358315955,1744929032113,-507.03837421,0.0001999,2]
[358315956,1744929032218,-254.97763763,0.0001999,2]
[358315957,1744929032229,-549.0,0.0001999,2]
[358315958,1744929032241,-3667.16421474,0.0001999,2]
[358315959,1744929032251,-2273058.42532823,0.0002,2]
[358315960,1744929032261,-599.08326304,0.00020589,2]
[358315961,1744929032270,-250.0,0.00020689,2]
[358315962,1744929032279,-1000.0,0.00020999,2]
[358315963,1744929032289,-7734.95537954,0.00021674,2]
[358315964,1744929032299,-420.0,0.00021777,2]
[358315965,1744929032308,-420.0,0.00021881,2]
[358315966,1744929032318,-250.0,0.00021999,2]
[358315967,1744929032327,-587.0,0.00023941,2]
[358315968,1744929032337,-5518.64601587,0.00024,5]
[358315969,1744929032347,-823.0,0.00026194,2]
[358315970,1744929032356,-250.0,0.00027999,2]
[358315971,1744929032366,-7734.95537945,0.00028144,2]
[358315972,1744929032376,-2000.0,0.00028602,4]
[358315973,1744929032386,-400.0,0.00028659,2]
[358315974,1744929032396,-500.0,0.00029,5]
[358315975,1744929032405,-349.000001,0.00029,5]
[358315976,1744929032416,-290.48154422,0.00029,5]
[358315977,1744929032425,-152.33264634,0.00029,5]
[358315978,1744929032436,-301.75063953,0.00029,5]
[358315979,1744929032446,-500.0,0.00029818,5]
[358315980,1744929032456,-158.26548598,0.00029818,5]
[358315981,1744929032465,-161.09676596,0.00029818,5]
[358315982,1744929032475,-500.0,0.00029818,2]
[358315983,1744929032484,-500.0,0.00029818,5]
[358315984,1744929032494,-280.17335578,0.00029818,5]
[358315985,1744929032504,-7734.95537945,0.00034613,2]
[358315986,1744929032513,-500.0,0.00039726,15]
[358315988,1744929032523,-500.0,0.00039726,15]
[358315990,1744929032532,-500.0,0.00039726,15]
[358315992,1744929032542,-500.0,0.00039726,15]
[358315993,1744929032551,-500.0,0.00039726,15]
[358315995,1744929032561,-500.0,0.00039726,15]
[358315997,1744929032570,-500.0,0.00039726,15]
[358315999,1744929032579,-500.0,0.00039726,15]
[358316002,1744929032591,-500.0,0.00039726,15]
[358316004,1744929032600,-500.0,0.00039726,15]
[358316006,1744929032610,-500.0,0.00039726,15]
[358316007,1744929032621,-500.0,0.00039726,15]
[358316008,1744929032631,-500.0,0.00039726,15]
[358316009,1744929032640,-500.0,0.00039726,15]
[358316010,1744929032650,-500.0,0.00039726,15]
[358316011,1744929032659,-500.0,0.00039726,15]
[358316012,1744929032669,-459.99521717,0.00039726,15]
[358316013,1744929032679,-500.0,0.00039726,15]
[358316014,1744929032689,-500.0,0.00039726,15]
[358316015,1744929032698,-500.0,0.00039726,15]
[358316016,1744929032708,-500.0,0.00039726,15]
[358316017,1744929032718,-500.0,0.00039726,15]
[358316018,1744929032728,-500.0,0.00039726,15]
[358316019,1744929032737,-500.0,0.00039726,15]
[358316020,1744929032747,-500.0,0.00039726,15]
[358316021,1744929032757,-500.0,0.00039726,15]
[358316022,1744929032766,-500.0,0.00039726,15]
[358316023,1744929032776,-500.0,0.00039726,15]
[358316024,1744929032786,-500.0,0.00039726,15]
[358316025,1744929032796,-500.0,0.00039726,15]
[358316026,1744929032806,-500.0,0.00039726,15]
[358316027,1744929032815,-350.0,0.00039726,15]
[358316028,1744929032826,-426.51819888,0.0004,2]
[358316029,1744929032835,-7734.95537945,0.00041083,15]
[358316030,1744929032845,-260.426166,0.000425,90]
[358316031,1744929032855,-2033.25,0.00042707,2]
[358316032,1744929032866,-523.93,0.00042707,2]
[358316033,1744929032876,-19999.99,0.00042707,2]
[358316034,1744929032885,-3362.49,0.00042707,2]
[358316035,1744929032895,-6433.36,0.00042707,30]
[358316036,1744929032905,-9677.77,0.00042815,2]
[358316037,1744929033051,-7734.95537945,0.00047552,15]
[358316038,1744929033063,-668.65185657,0.00048,120]
[358316039,1744929033073,-8759.52719081,0.000499,15]
[358316040,1744929033084,-274.46,0.0005,120]
[358316041,1744929033094,-1736.78515837,0.00052,40]
[358316042,1744929033104,-757.96790328,0.00052844,24]
[358316043,1744929033113,-8759.52719075,0.00053233,15]
[358316044,1744929033124,-151.0,0.000536,100]
[358316045,1744929033136,-248.04472338,0.0005375,2]
[358316046,1744929033146,-1820.64784988,0.0005375,2]
[358316047,1744929033156,-300.0,0.00053843,30]
[358316048,1744929033166,-500.0,0.00053843,30]
[358316049,1744929033175,-14281.09535108,0.0005385,30]
[358316050,1744929033185,-134885.2689262,0.0005385,30]
[358316051,1744929033198,-8166.00336927,0.0005385,30]
[358316052,1744929033210,-354.29549023,0.0005385,30]
[358316055,1744929038227,-355.99999955,0.00039963,2]
[358316056,1744929038242,-566.27000045,0.00039963,2]
[358316057,1744929038251,-7140.02235838,0.0005385,30]
[358316058,1744929038263,-1069.33880388,0.0005385,30]
[358316059,1744929038274,-2686.5999973,0.0005385,30]
[358316060,1744929038285,-376.12416,0.0005385,30]
[358316061,1744929038296,-2368.08535714,0.0005385,30]
[358316062,1744929038308,-1782.11676153,0.0005385,30]
[358316063,1744929038319,-1159.30794588,0.0005385,30]
[358316064,1744929038359,-1818.63834913,0.0005385,30]
[358316065,1744929038371,-593637.7742299,0.0005385,30]
[358316066,1744929038380,-54915.83576853,0.0005385,30]
[358316067,1744929038390,-52543.62833045,0.0005385,30]
[358316068,1744929038400,-110787.50839942,0.0005385,30]
[358316069,1744929038410,-7500.000002,0.0005385,30]
[358316070,1744929038419,-2759.06,0.000539,60]
[358316071,1744929038429,-7734.95537945,0.00054022,15]
[358316072,1744929038438,-534.54561436,0.000549,2]
[358316073,1744929038447,-4053.07,0.000552,30]
[358316074,1744929038457,-153.53,0.000552,54]
[358316075,1744929038467,-8759.52719075,0.00056567,15]
[358316076,1744929038477,-242.26999817,0.0005808,30]
[358316077,1744929038486,-2000.0,0.00058757,4]
[358316078,1744929038495,-8759.52719075,0.000599,15]
[358316079,1744929038505,-7734.95537945,0.00060491,15]
[358316080,1744929038514,-200.0,0.00062231,2]
[358316081,1744929038524,-8759.52719075,0.00063233,15]
[358316082,1744929038534,-907.0,0.00065227,120]
[358316083,1744929038545,-545.0,0.00065227,120]
[358316084,1744929038554,-1280.0,0.00065227,120]
[358316085,1744929038564,-656.988,0.00065227,120]
[358316086,1744929038573,-4147.0,0.00065227,120]
[358316087,1744929038584,-8759.52719075,0.00066567,15]
[358316088,1744929038595,-7734.95537945,0.00066961,15]
[358316089,1744929038607,-1282.77119596,0.00067263,120]
[358316090,1744929038616,-2173.31,0.00068493,120]
[358316091,1744929038627,-2173.31,0.00068493,120]
[358316092,1744929038637,-2173.31,0.00068493,120]
[358316093,1744929038646,-2173.31,0.00068493,120]
[358316095,1744929038656,-2173.31,0.00068493,120]
[358316097,1744929038666,-2173.31,0.00068493,120]
[358316099,1744929038675,-2173.31,0.00068493,120]
[358316100,1744929038686,-2173.31,0.00068493,120]
[358316102,1744929038695,-2173.31,0.00068493,120]
[358316104,1744929038704,-2173.31,0.00068493,120]
[358316106,1744929038714,-2173.31,0.00068493,120]
[358316107,1744929038723,-2173.31,0.00068493,120]
[358316108,1744929038732,-2173.31,0.00068493,120]
[358316109,1744929038742,-1178.47,0.00068586,2]
[358316110,1744929038751,-150.99,0.00068586,2]
[358316111,1744929038761,-2534.19,0.00068586,2]
[358316112,1744929038771,-1288.0,0.00068586,120]
[358316113,1744929038781,-2136.0,0.00068586,2]
[358316114,1744929038791,-2047.0,0.00068586,120]
[358316115,1744929038800,-153.522,0.00068586,120]
[358316116,1744929038810,-152.0,0.00068586,2]
[358316118,1744929038819,-678.398,0.00068586,120]
[358316120,1744929038829,-1328.0,0.00068586,120]
[358316122,1744929038838,-791.0,0.00068586,2]
[358316124,1744929038847,-1124.0,0.00068586,120]
[358316126,1744929038856,-1438.0,0.00068586,120]
[358316128,1744929038865,-248.04472337,0.00069325,2]
[358316129,1744929038874,-1820.64784988,0.00069325,2]
[358316131,1744929038884,-8759.52719075,0.000699,15]
[358316133,1744929038893,-534.54561436,0.000699,2]
[358316135,1744929038902,-1829.0,0.00071586,2]
[358316137,1744929038911,-1122.0,0.00071586,120]
[358316139,1744929038921,-1754.62,0.00072198,120]
[358316140,1744929038930,-233.34,0.00072492,120]
[358316142,1744929038941,-8759.52719075,0.00073233,15]
[358316145,1744929038959,-200.0,0.00073254,30]
[358316147,1744929038970,-250.0,0.00073355,120]
[358316149,1744929038980,-7734.95537945,0.0007343,15]
[358316151,1744929038989,-2098.03,0.00073468,30]
[358316153,1744929038999,-165.93,0.00073571,120]
[358316155,1744929039008,-166.15,0.00074107,2]
[358316157,1744929039019,-6988.15,0.00074123,2]
[358316158,1744929039028,-8415.28,0.00074167,2]
[358316160,1744929039041,-236.38,0.00074355,2]
[358316162,1744929039052,-230.1757978,0.00074399,120]
[358316164,1744929039061,-1698.8155795,0.00075,76]
[358316166,1744929039071,-1000.0,0.00075519,120]
[358316168,1744929039082,-23900.0,0.00075671,2]
[358316170,1744929039091,-1800.0,0.00076,77]
[358316172,1744929039101,-469.89,0.00076557,2]
[358316174,1744929039110,-8759.52719075,0.00076567,15]
[358316176,1744929039120,-150.0,0.00076835,30]
[358316178,1744929039130,-1000.000001,0.00077,120]
[358316179,1744929039139,-2422.69,0.00077364,120]
[358316181,1744929039148,-2759.06,0.000774,60]
[358316183,1744929039158,-150.0,0.000779,2]
[358316184,1744929039168,-859.8789,0.000779,2]
[358316185,1744929039177,-210.8174,0.000779,2]
[358316186,1744929039187,-298.4239,0.000779,2]
[358316187,1744929039196,-2574.8799,0.000779,2]
[358316188,1744929039207,-482.336,0.00077999,120]
[358316189,1744929039217,-300.0,0.00077999,60]
[358316190,1744929039227,-500.0,0.00077999,90]
[358316191,1744929039236,-2173.31,0.00077999,120]
[358316192,1744929039246,-63641.68616308,0.00078,120]
[358316193,1744929039260,-83358.31383693,0.00078,120]
[358316194,1744929039269,-187.76441307,0.00078,10]
[358316195,1744929039279,-28734.417,0.00078094,2]
[358316196,1744929039288,-1837.03798038,0.00078193,2]
[358316197,1744929039298,-70679.61404939,0.00078194,2]
[358316198,1744929039308,-176.5,0.00078493,120]
[358316199,1744929039317,-469.89,0.00078821,2]
[358316200,1744929039327,-2173.31,0.00078893,120]
[358316201,1744929039337,-450.95,0.00078941,30]
[358316202,1744929039346,-50000.0,0.00079,79]
[358316203,1744929039356,-3600.0,0.00079,80]
[358316204,1744929039366,-6363.91,0.00079,2]
[358316205,1744929039376,-172.71,0.00079043,2]
[358316206,1744929039386,-500.0,0.00079412,2]
[358316207,1744929039396,-203.69,0.0007942,2]
[358316208,1744929039406,-2139.1741,0.000796,14]
[358316209,1744929039415,-1539.0,0.000797,14]
[358316210,1744929039425,-150.0,0.00079755,60]
[358316211,1744929039436,-150.0,0.00079763,60]
[358316212,1744929039446,-150.0,0.00079771,60]
[358316213,1744929039456,-150.0,0.00079776,60]
[358316214,1744929039465,-150.0,0.00079777,60]
[358316215,1744929039475,-150.0,0.0007978,60]
[358316216,1744929039484,-300.0,0.00079788,60]
[358316217,1744929039494,-1015.77,0.000798,120]
[358316218,1744929039504,-150.0,0.000798,60]
[358316219,1744929039513,-150.0,0.00079802,60]
[358316220,1744929039523,-150.0,0.00079803,60]
[358316221,1744929039533,-150.0,0.00079816,60]
[358316222,1744929039542,-150.0,0.00079821,60]
[358316223,1744929039552,-150.0,0.00079823,60]
[358316224,1744929039562,-150.0,0.00079828,60]
[358316225,1744929039572,-300.0,0.00079828,60]
[358316226,1744929039582,-150.0,0.00079829,60]
[358316227,1744929039592,-150.0,0.00079837,60]
[358316228,1744929039602,-150.0,0.00079842,60]
[358316229,1744929039611,-150.0,0.00079853,60]
[358316230,1744929039621,-150.0,0.00079857,60]
[358316231,1744929039631,-150.0,0.0007987,60]
[358316232,1744929039643,-150.0,0.00079871,60]
[358316233,1744929039653,-244.41128664,0.00079875,60]
[358316234,1744929039663,-165.87429171,0.00079887,60]
[358316235,1744929039673,-150.0,0.00079892,60]
[358316236,1744929039683,-150.0,0.000799,120]
[358316237,1744929039693,-353.6670393,0.000799,120]
[358316238,1744929039703,-5000.0,0.000799,120]
[358316239,1744929039713,-8759.52719075,0.000799,15]
[358316240,1744929039724,-150.0,0.000799,2]
[358316241,1744929039734,-290.21386397,0.000799,2]
[358316242,1744929039744,-150.0,0.000799,2]
[358316243,1744929039754,-2157.86462257,0.000799,2]
[358316244,1744929039764,-7734.95537945,0.000799,15]
[358316245,1744929039774,-150.0,0.00079913,60]
[358316246,1744929039783,-150.0,0.00079915,60]
[358316247,1744929039793,-150.0,0.00079917,60]
[358316248,1744929039803,-150.0,0.00079926,60]
[358316249,1744929039812,-150.0,0.00079931,60]
[358316250,1744929039822,-150.0,0.00079931,60]
[358316251,1744929039832,-150.0,0.00079936,60]
[358316252,1744929039842,-150.0,0.00079941,60]
[358316253,1744929039852,-150.0,0.0007995,60]
[358316254,1744929039862,-150.0,0.00079961,60]
[358316255,1744929039872,-150.0,0.00079966,60]
[358316256,1744929039881,-300.0,0.00079978,60]
[358316257,1744929039891,-300.0,0.00079987,60]
[358316258,1744929039901,-336.58619298,0.00079987,90]
[358316259,1744929039911,-55474.51105627,0.00079988,9]
[358316260,1744929039924,-13104.09970125,0.00079988,9]
[358316261,1744929039935,-1221.9775619,0.00079988,9]
[358316262,1744929039951,-451.35626629,0.00079988,9]
[358316266,1744929040338,-610.11,0.00068493,120]
[358316267,1744929040348,-1318.41960651,0.00079988,9]
[358316268,1744929040357,-5091.50238043,0.00079988,9]
[358316269,1744929040369,-20102.84282797,0.00079988,9]
[358316270,1744929040378,-7917.8864038,0.00079988,9]
[358316271,1744929040388,-615.3729113,0.00079988,9]
[358316272,1744929040398,-150.0,0.00079997,60]
[358316273,1744929040407,-2173.31,0.00079998,120]
[358316274,1744929040416,-500.0,0.00079998,120]
[358316275,1744929040426,-500.0,0.00079998,120]
[358316276,1744929040436,-500.0,0.00079998,120]
[358316277,1744929040446,-500.0,0.00079998,8]
[358316278,1744929040455,-500.0,0.00079998,120]
[358316279,1744929040465,-304.75512875,0.00079999,90]
[358316280,1744929040475,-300.0,0.00079999,60]
[358316281,1744929040484,-500.0,0.00079999,120]
[358316282,1744929040494,-500.0,0.00079999,120]
[358316283,1744929040504,-423.632729,0.00079999,120]
[358316284,1744929040515,-76.367271,0.00079999,120]
[358316285,1744929040525,-500.0,0.00079999,120]
[358316286,1744929040534,-366.09796703,0.00079999,120]
[358316287,1744929040546,-133.90203297,0.00079999,120]
[358316288,1744929040556,-494.47902546,0.00079999,120]
[358316289,1744929040566,-379.27284476,0.00079999,120]
[358316290,1744929040606,-2.22812678,0.00079999,120]
[358316291,1744929040618,-118.49902846,0.00079999,120]
[358316292,1744929040627,-500.0,0.00079999,120]
[358316293,1744929040637,-323.18097154,0.00079999,120]
[358316294,1744929040649,-176.81902846,0.00079999,120]
[358316295,1744929040659,-433.98181537,0.00079999,120]
[358316296,1744929040668,-500.0,0.00079999,120]
[358316297,1744929040678,-500.0,0.00079999,120]
[358316298,1744929040688,-500.0,0.00079999,120]
[358316299,1744929040698,-238.70350806,0.00079999,120]
[358316300,1744929040708,-500.0,0.00079999,120]
[358316301,1744929040718,-500.0,0.00079999,120]
[358316302,1744929040727,-150.0,0.00079999,60]
[358316303,1744929040737,-500.0,0.00079999,120]
[358316304,1744929040747,-229.35618156,0.00079999,120]
[358316305,1744929040756,-78.69990373,0.00079999,120]
[358316306,1744929040769,-277.70849148,0.00079999,120]
[358316307,1744929040779,-500.0,0.00079999,120]
[358316308,1744929040788,-500.0,0.00079999,120]
[358316309,1744929040798,-500.0,0.00079999,120]
[358316310,1744929040808,-500.0,0.00079999,120]
[358316311,1744929040817,-500.0,0.00079999,120]
[358316312,1744929040827,-500.0,0.00079999,120]
[358316313,1744929040837,-500.0,0.00079999,120]
[358316314,1744929040846,-22.07040621,0.00079999,120]
[358316316,1744929040857,-477.92959379,0.00079999,120]
[358316317,1744929040867,-500.0,0.00079999,120]
[358316318,1744929040877,-254.26040621,0.00079999,120]
[358316320,1744929041017,-245.73959379,0.00079999,120]
[358316321,1744929041027,-500.0,0.00079999,120]
[358316322,1744929041039,-160.07470107,0.00079999,120]
[358316323,1744929041052,-339.92529893,0.00079999,120]
[358316324,1744929041062,-500.0,0.00079999,120]
[358316325,1744929041071,-500.0,0.00079999,120]
[358316326,1744929041083,-500.0,0.00079999,120]
[358316327,1744929041092,-500.0,0.00079999,120]
[358316328,1744929041102,-500.0,0.00079999,120]
[358316329,1744929041112,-500.0,0.00079999,120]
[358316330,1744929041123,-500.0,0.00079999,120]
[358316331,1744929041133,-500.0,0.00079999,120]
[358316332,1744929041143,-500.0,0.00079999,120]
[358316333,1744929041153,-474.13319254,0.00079999,120]
[358316334,1744929041162,-500.0,0.00079999,120]
[358316335,1744929041172,-500.0,0.00079999,120]
[358316336,1744929041182,-500.0,0.00079999,120]
[358316337,1744929041191,-500.0,0.00079999,120]
[358316338,1744929041201,-500.0,0.00079999,120]
[358316339,1744929041211,-500.0,0.00079999,120]
[358316340,1744929041221,-500.0,0.00079999,120]
[358316341,1744929041231,-213.36,0.00079999,120]
[358316342,1744929041241,-500.0,0.00079999,120]
[358316343,1744929041250,-500.0,0.00079999,120]
[358316344,1744929041259,-2173.31,0.00079999,120]
[358316345,1744929041269,-2173.31,0.00079999,120]
[358316346,1744929041278,-2173.31,0.00079999,120]
[358316347,1744929041287,-2173.31,0.00079999,120]
[358316348,1744929041406,-2173.31,0.00079999,120]
[358316349,1744929041418,-2173.31,0.00079999,120]
[358316350,1744929041427,-2173.31,0.00079999,120]
[358316351,1744929041437,-2173.52149694,0.00079999,120]
[358316352,1744929041447,-500.0,0.00079999,120]
[358316353,1744929041456,-500.0,0.00079999,120]
[358316354,1744929041466,-500.0,0.00079999,120]
[358316355,1744929041476,-500.0,0.00079999,120]
[358316356,1744929041486,-500.0,0.00079999,120]
[358316357,1744929041496,-500.0,0.00079999,120]
[358316358,1744929041505,-500.0,0.00079999,120]
[358316359,1744929041516,-500.0,0.00079999,120]
[358316360,1744929041526,-485.85,0.00079999,120]
[358316361,1744929041535,-500.0,0.00079999,120]
[358316362,1744929041545,-500.0,0.00079999,120]
[358316363,1744929041555,-1742.1818031,0.00079999,120]
[358316364,1744929041567,-257.8181969,0.00079999,120]
[358316365,1744929041577,-410.8038031,0.00079999,120]
[358316366,1744929041588,-266.77825657,0.00079999,120]
[358316367,1744929041600,-1322.41794033,0.00079999,120]
[358316368,1744929041610,-567.12158693,0.00079999,120]
[358316369,1744929041620,-500.0,0.00079999,120]
[358316370,1744929041629,-46.5161413,0.00079999,120]
[358316371,1744929041641,-453.4838587,0.00079999,120]
[358316372,1744929041650,-500.0,0.00079999,120]
[358316373,1744929041660,-2000.0,0.00079999,2]
[358316374,1744929041670,-2000.0,0.00079999,2]
[358316375,1744929041680,-500.0,0.00079999,120]
[358316376,1744929041690,-500.0,0.00079999,120]
[358316377,1744929041699,-2000.0,0.00079999,120]
[358316378,1744929041710,-500.0,0.00079999,120]
[358316379,1744929041719,-602.68956151,0.00079999,30]
[358316380,1744929041729,-500.0,0.00079999,120]
[358316381,1744929041739,-500.0,0.00079999,120]
[358316382,1744929041749,-500.0,0.00079999,120]
[358316383,1744929041759,-500.0,0.00079999,120]
[358316384,1744929041769,-500.0,0.00079999,120]
[358316385,1744929041779,-500.0,0.00079999,120]
[358316386,1744929041789,-593.85256609,0.00079999,120]
[358316387,1744929041799,-500.0,0.00079999,120]
[358316388,1744929041809,-50000.0,0.0008,80]
[358316389,1744929041819,-158.0,0.0008,60]
[358316390,1744929041829,-37079.5269548,0.0008,120]
[358316391,1744929041840,-457.45496847,0.0008,120]
[358316392,1744929041852,-188681.93600707,0.0008,120]
[358316393,1744929041863,-300.06606791,0.0008,120]
[358316394,1744929041877,-346.94941179,0.0008,120]
[358316406,1744929044077,-500.0,0.00068493,120]
[358316407,1744929044087,-108.349041,0.00068493,120]
[358316408,1744929044098,-70.360959,0.00068493,120]
[358316409,1744929044107,-6919.48624173,0.00078,78]